Workbook

Sheet Instructions
B6: Thank you for downloading this template. We hope that it can help you manage your money, take control of your financial life, and follow your own detours. Your budget is one of the best tools that you have. It's not about earning more money, but rather, it's about controlling the money you already earn that will set you on the path to financial freedom.
B10: INSTRUCTIONS
B11: The goal of this template is to provide a quick and easy way for you to plan your monthly budget and expenses and then track your progress over the month.
B13: Definitions:
B14: 1.) Total Income - The total amount of money that you earn each month before any expenses.
B15: 2.) Total Fixed Expenses - Fixed expenses are your bills. They are things that you must pay such as your mortgage or rent, utilities, insurance, credit card payments etc. For most people, these don't vary too much from month to month.
B16: 3. ) Disposable Income - The money that is left over once you take your total income and subtract all of your fixed expenses. This is the money that you have each month to spend on groceries, entertainment, clothes, etc.
B17: 4. ) Cash Balance - The amount left once all of your expenses have been subtracted from your income. Often called net income.
B18: 5.) Budget Category - This term is used to describe the "buckets" that you will budget for. These buckets are common purchase items such as groceries, gas, entertainment, special occasions etc.
B23: HOW TO USE THIS TEMPLATE
B24: 1.) Enter all of your monthly earnings on the Income & Expenses Sheet.
B25: 2.) Enter all of your monthly bills on the Income & Expense Sheet. You can put payment date information as well as payment status in this section. PRO TIP: Always make sure to pay yourself something each month - include the amount you want to save in the Fixed Expenses section so that you treat savings just like you would your car payment.
B26: 3.) Have a budget meeting. On the Budget & Planning Sheet, allocate money to the budget categories that make sense for you. Choose your categories and enter the budgeted amount. That's all you need to do. All of the other information will automatically update throughout the month. Try to budget until you have $0 left remaining. This means that you have accounted for every dollar for the month and will ensure you that you can meet all of your obligations and goals.
B27: 4.) Enter your monthly purchases in the right section on the Income & Expenses sheet. Be sure to specify the budget category that is appropriate. IMPORTANT: make sure that the budget category you specify for your purchase is accounted for on the Budget & Planning Sheet. For example, don't specify a budget category of Home Repair for a purchase if you don't have Home Repair as one of the budget categories on the Budget & Planning Worksheet.
B29: HOW TO UPDATE THE BUDGET CATEGORIES
B30: Here are the steps to edit the budget categories used throughout this template.
B31: 1.) Right Click on the Instructions tab at the bottom of the screen.
B32: 2.) Choose Unhide
B33: 3.) Select Your Information
B34: 4.) Edit the categories that are listed
B35: 5.) Once finished, click the Sort button at the top to automatically alphabatize from A-Z
B36: 6.) If desired, right click on the Your Information tab and select Hide to make the sheet invisible
B38: If you have questions about this and would like to see a video tutorial, click Here

Sheet Your Information (hidden)
A1: Spend Categories | B1: Payment Methods | C1: Budget Categories
A2: Art / Craft Project | B2: Cash | C2: Alimony
A3: Charitable Donation | B3: Check | C3: Allowance
A4: Clothes - Personal | B4: Checking Account | C4: Charitable Giving
A5: Clothes - Work | B5: Credit Card 1 | C5: Child Care
A6: Cosmetics/Personal Items | B6: Credit Card 2 | C6: Child Support
A7: Dog Expense - Vet, food, etc. | B7: Debit Card 1 | C7: Clothes
A8: Electronics | C8: Cosmetics / Personal Items
A9: Entertainment - Alcohol Home | C9: Entertainment
A10: Entertainment - General | C10: Gas
A11: Family Event | C11: Gift
A12: Food - Groceries | C12: Groceries
A13: Food - Restaurant | C13: Holiday / Special Occasion
A14: Gas - Vehicle 1 | C14: Home Repair
A15: Gas - Vehicle 2 | C15: Laundry
A16: Gift | C16: Medical Expense
A17: Gym/Fitness Expense | C17: Medications
A18: Health | C18: Miscellaneous
A19: Home Repair | C19: Pet Expense
A20: Household Items | C20: Repair / Maintenance
A21: Household Items - Yard/Outside | C21: Restaurants (Dining Out)
A22: Laundry | C22: RV Lodging / Parking
A23: Medical | C23: RV Membership
A24: Misc. | C24: Savings
A25: Moving Expense | C25: Special Occasion
A26: N/A Beverage (coffee, smoothies etc.) | C26: Subscriptions
A27: Personal Appearance (Hair cuts, manicures, pedicures) | C27: Transportation
A28: Shoes | C28: Travel Expense
A29: Souvenir | C29: Tuition
A30: Special Occasion (Birthday, holiday, etc.) | C30: Vacation
A31: Travel Expense | C31: Vehicle Expense
C32: Vehicle Registration (plates and taxes)
C33: Work Expense

Sheet Monthly Dashboard
B1: Monthly Summary
C4: Total Income | E4: Total Fixed Expenses (Bills) | G4: Monthly Purchases | I4: Cash Balance
C5: =SUM(TBL_Total_Income[[#All],[Amount]]) -> $3,000.00 | E5: =SUM(TBL_Fixed_Expenses[[#All],[Amount]]) -> $1,643.34 | G5: =SUM(TBL_monthly_purchases[[#All],[AMOUNT]]) -> $213.00 | I5: =(dshbrd_tot_income-dshbrd_fixedexpenses-Total_envelope_spend) -> $1,143.66

Sheet Chart Data (hidden)
A1: Disposable Income (Envelope Spend) Burndown | F1: Montly Income vs Expenses | K1: Not Paid | N1: ='Budget & Planning'!C9 -> Category | O1: ='Budget & Planning'!D9 -> Budget | P1: ='Budget & Planning'!E9 -> Actual | S1: For SUM IF
A2: Disposable Income Remaining | B2: =MIN(1,1-B3) -> 84% | F2: Total Income | G2: =dshbrd_tot_income -> 3000 | K2: Paid | N2: ='Budget & Planning'!C10 -> Gas | O2: ='Budget & Planning'!D10 -> 200 | P2: ='Budget & Planning'!E10 -> 45 | S2: ='Budget & Planning'!C10 -> Gas
A3: Disposable Income Spent | B3: =MIN(Total_envelope_spend/total_disosable_income,1) -> 16% | F3: Total Expense | G3: =dshbrd_fixedexpenses+Total_envelope_spend -> 1856.34 | N3: ='Budget & Planning'!C11 -> Holiday / Special Occasion | O3: ='Budget & Planning'!D11 -> 200 | P3: ='Budget & Planning'!E11 -> 100 | S3: ='Budget & Planning'!C11 -> Holiday / Special Occasion
A4: =(Total_envelope_spend+dshbrd_fixedexpenses)/dshbrd_tot_income>1 -> FALSE | N4: ='Budget & Planning'!C12 -> Restaurants (Dining Out) | O4: ='Budget & Planning'!D12 -> 200 | P4: ='Budget & Planning'!E12 -> 35 | S4: ='Budget & Planning'!C12 -> Restaurants (Dining Out)
A5: =(Total_envelope_spend+dshbrd_fixedexpenses)/dshbrd_tot_income<1 -> TRUE | N5: ='Budget & Planning'!C13 -> 0 | O5: ='Budget & Planning'!D13 -> 0 | P5: ='Budget & Planning'!E13 -> 0 | S5: ='Budget & Planning'!C13 -> 0
N6: ='Budget & Planning'!C14 -> 0 | O6: ='Budget & Planning'!D14 -> 0 | P6: ='Budget & Planning'!E14 -> 0 | S6: ='Budget & Planning'!C14 -> 0
N7: ='Budget & Planning'!C15 -> 0 | O7: ='Budget & Planning'!D15 -> 0 | P7: ='Budget & Planning'!E15 -> 0 | S7: ='Budget & Planning'!C15 -> 0
N8: ='Budget & Planning'!C16 -> 0 | O8: ='Budget & Planning'!D16 -> 0 | P8: ='Budget & Planning'!E16 -> 0 | S8: ='Budget & Planning'!C16 -> 0
N9: ='Budget & Planning'!C17 -> 0 | O9: ='Budget & Planning'!D17 -> 0 | P9: ='Budget & Planning'!E17 -> 0 | S9: ='Budget & Planning'!C17 -> 0
N10: ='Budget & Planning'!C18 -> 0 | O10: ='Budget & Planning'!D18 -> 0 | P10: ='Budget & Planning'!E18 -> 0 | S10: ='Budget & Planning'!C18 -> 0
N11: ='Budget & Planning'!C19 -> 0 | O11: ='Budget & Planning'!D19 -> 0 | P11: ='Budget & Planning'!E19 -> 0 | S11: ='Budget & Planning'!C19 -> 0
N12: ='Budget & Planning'!C20 -> 0 | O12: ='Budget & Planning'!D20 -> 0 | P12: ='Budget & Planning'!E20 -> 0 | S12: ='Budget & Planning'!C20 -> 0
N13: ='Budget & Planning'!C21 -> 0 | O13: ='Budget & Planning'!D21 -> 0 | P13: ='Budget & Planning'!E21 -> 0 | S13: ='Budget & Planning'!C21 -> 0
N14: ='Budget & Planning'!C22 -> 0 | O14: ='Budget & Planning'!D22 -> 0 | P14: ='Budget & Planning'!E22 -> 0 | S14: ='Budget & Planning'!C22 -> 0
N15: ='Budget & Planning'!C23 -> 0 | O15: ='Budget & Planning'!D23 -> 0 | P15: ='Budget & Planning'!E23 -> 0 | S15: ='Budget & Planning'!C23 -> 0
N16: ='Budget & Planning'!C24 -> 0 | O16: ='Budget & Planning'!D24 -> 0 | P16: ='Budget & Planning'!E24 -> 0 | S16: ='Budget & Planning'!C24 -> 0
N17: ='Budget & Planning'!C25 -> 0 | O17: ='Budget & Planning'!D25 -> 0 | P17: ='Budget & Planning'!E25 -> 0 | S17: ='Budget & Planning'!C25 -> 0
N18: ='Budget & Planning'!C26 -> 0 | O18: ='Budget & Planning'!D26 -> 0 | P18: ='Budget & Planning'!E26 -> 0 | S18: ='Budget & Planning'!C26 -> 0
N19: ='Budget & Planning'!C27 -> 0 | O19: ='Budget & Planning'!D27 -> 0 | P19: ='Budget & Planning'!E27 -> 0 | S19: ='Budget & Planning'!C27 -> 0
N20: ='Budget & Planning'!C28 -> 0 | O20: ='Budget & Planning'!D28 -> 0 | P20: ='Budget & Planning'!E28 -> 0 | S20: ='Budget & Planning'!C28 -> 0
N21: ='Budget & Planning'!C29 -> 0 | O21: ='Budget & Planning'!D29 -> 0 | P21: ='Budget & Planning'!E29 -> 0 | S21: ='Budget & Planning'!C29 -> 0
N22: ='Budget & Planning'!C30 -> 0 | O22: ='Budget & Planning'!D30 -> 0 | P22: ='Budget & Planning'!E30 -> 0 | S22: ='Budget & Planning'!C30 -> 0
N23: ='Budget & Planning'!C31 -> 0 | O23: ='Budget & Planning'!D31 -> 0 | P23: ='Budget & Planning'!E31 -> 0 | S23: ='Budget & Planning'!C31 -> 0
N24: ='Budget & Planning'!C32 -> 0 | O24: ='Budget & Planning'!D32 -> 0 | P24: ='Budget & Planning'!E32 -> 0 | S24: ='Budget & Planning'!C32 -> 0
N25: ='Budget & Planning'!C33 -> 0 | O25: ='Budget & Planning'!D33 -> 0 | P25: ='Budget & Planning'!E33 -> 0 | S25: ='Budget & Planning'!C33 -> 0
N26: ='Budget & Planning'!C34 -> 0 | O26: ='Budget & Planning'!D34 -> 0 | P26: ='Budget & Planning'!E34 -> 0 | S26: ='Budget & Planning'!C34 -> 0

Sheet Income & Expenses
B1: Income | E1: Fixed Expenses | J1: Monthly Purchases
B3: Income | C3: Amount | E3: Fixed Monthly Expense Item | F3: Amount | G3: Due Date | H3: Payment Status | J3: PURCHASE/PAYEE | K3: DATE | L3: AMOUNT | M3: CATEGORY
B4: Job 1 Paycheck 1 | C4: $1,500.00 | E4: Savings | F4: $500.00 | G4: [date] | J4: Best Buy | K4: 2017-09-02 | L4: $100.00 | M4: Holiday / Special Occasion
B5: Job 1 Paycheck 2 | C5: $1,500.00 | E5: Health Insurance | F5: $177.00 | G5: [date] | J5: Gas Station | K5: 2017-09-03 | L5: $45.00 | M5: Gas
E6: Cell Phone | F6: $90.00 | G6: [date] | J6: Chili's | K6: 2017-09-04 | L6: $35.00 | M6: Restaurants (Dining Out)
E7: Netflix | F7: $9.00 | G7: [date] | J7: Home Depot | K7: 2017-09-05 | L7: $33.00 | M7: Home Repair
E8: Cable / Satellite Bill | F8: $100.00 | G8: [date]
E9: Car Payment 1 | F9: $500.00 | G9: [date]
E10: Car Payment 2 | F10: 0 | G10: [date]
E11: Cloud Storage | F11: $10.00 | G11: [date]
E12: Life Insurance | F12: $20.00 | G12: [date]
E13: Car Insurance | F13: $150.00 | G13: [date]
E14: Storage Unit | F14: $12.00 | G14: [date]
E15: RV Insurance | F15: 0 | G15: [date]
E16: Gym Membership | F16: $45.00 | G16: [date]
E17: Spotify | F17: $17.44 | G17: [date]
E18: ID Theft Insurance | F18: $12.90 | G18: [date]
E19: Credit Card 1 | F19: 0 | G19: [date]
E20: Credit Card 2 | F20: 0 | G20: [date]
E21: Retail Credit 1 | F21: 0 | G21: [date]
E22: Audible | F22: 0 | G22: [date]
E23: RV Membership | F23: 0 | G23: [date]
E24: Internet | F24: 0 | G24: [date]
E25: Utilities | F25: 0 | G25: [date]

Sheet Budget & Planning
B1: Planning Worksheet
C4: Budgeting Amount (Disposable Income) | E4: Total Amount Budgeted | G4: Amount Remaining to Budget
C5: =(SUM(TBL_Total_Income[[#All],[Amount]]))-(SUM(TBL_Fixed_Expenses[[#All],[Amount]])) -> $1,356.66 | E5: =TBL_budget_categories[[#Totals],[Budget]] -> $600.00 | G5: =(SUM(TBL_Total_Income[[#All],[Amount]]))-(SUM(TBL_Fixed_Expenses[[#All],[Amount]]))-(TBL_budget_categories[[#Totals],[Budget]]) -> $756.66
C9: Category | D9: Budget | E9: Actual | F9: Amount Remaining | G9: % Spent
C10: Gas | D10: $200.00 | E10: =SUMIF(TBL_monthly_purchases[[#Data],[CATEGORY]],'Chart Data'!S2,TBL_monthly_purchases[[#Data],[AMOUNT]]) -> $45.00 | F10: =TBL_budget_categories[[#This Row],[Budget]]-TBL_budget_categories[[#This Row],[Actual]] -> $155.00 | G10: =E10/D10 -> 23%
C11: Holiday / Special Occasion | D11: $200.00 | E11: =SUMIF(TBL_monthly_purchases[[#Data],[CATEGORY]],'Chart Data'!S3,TBL_monthly_purchases[[#Data],[AMOUNT]]) -> $100.00 | F11: =TBL_budget_categories[[#This Row],[Budget]]-TBL_budget_categories[[#This Row],[Actual]] -> $100.00 | G11: =E11/D11 -> 50%
C12: Restaurants (Dining Out) | D12: $200.00 | E12: =SUMIF(TBL_monthly_purchases[[#Data],[CATEGORY]],'Chart Data'!S4,TBL_monthly_purchases[[#Data],[AMOUNT]]) -> $35.00 | F12: =TBL_budget_categories[[#This Row],[Budget]]-TBL_budget_categories[[#This Row],[Actual]] -> $165.00 | G12: 18%
E13: =SUMIF(TBL_monthly_purchases[[#Data],[CATEGORY]],'Chart Data'!S5,TBL_monthly_purchases[[#Data],[AMOUNT]]) -> 0 | F13: =TBL_budget_categories[[#This Row],[Budget]]-TBL_budget_categories[[#This Row],[Actual]] -> 0
E14: =SUMIF(TBL_monthly_purchases[[#Data],[CATEGORY]],'Chart Data'!S6,TBL_monthly_purchases[[#Data],[AMOUNT]]) -> 0 | F14: =TBL_budget_categories[[#This Row],[Budget]]-TBL_budget_categories[[#This Row],[Actual]] -> 0
E15: =SUMIF(TBL_monthly_purchases[[#Data],[CATEGORY]],'Chart Data'!S7,TBL_monthly_purchases[[#Data],[AMOUNT]]) -> 0 | F15: =TBL_budget_categories[[#This Row],[Budget]]-TBL_budget_categories[[#This Row],[Actual]] -> 0
E16: =SUMIF(TBL_monthly_purchases[[#Data],[CATEGORY]],'Chart Data'!S8,TBL_monthly_purchases[[#Data],[AMOUNT]]) -> 0 | F16: =TBL_budget_categories[[#This Row],[Budget]]-TBL_budget_categories[[#This Row],[Actual]] -> 0
E17: =SUMIF(TBL_monthly_purchases[[#Data],[CATEGORY]],'Chart Data'!S9,TBL_monthly_purchases[[#Data],[AMOUNT]]) -> 0 | F17: =TBL_budget_categories[[#This Row],[Budget]]-TBL_budget_categories[[#This Row],[Actual]] -> 0
E18: =SUMIF(TBL_monthly_purchases[[#Data],[CATEGORY]],'Chart Data'!S10,TBL_monthly_purchases[[#Data],[AMOUNT]]) -> 0 | F18: =TBL_budget_categories[[#This Row],[Budget]]-TBL_budget_categories[[#This Row],[Actual]] -> 0
E19: =SUMIF(TBL_monthly_purchases[[#Data],[CATEGORY]],'Chart Data'!S11,TBL_monthly_purchases[[#Data],[AMOUNT]]) -> 0 | F19: =TBL_budget_categories[[#This Row],[Budget]]-TBL_budget_categories[[#This Row],[Actual]] -> 0
E20: =SUMIF(TBL_monthly_purchases[[#Data],[CATEGORY]],'Chart Data'!S12,TBL_monthly_purchases[[#Data],[AMOUNT]]) -> 0 | F20: =TBL_budget_categories[[#This Row],[Budget]]-TBL_budget_categories[[#This Row],[Actual]] -> 0 | G20: =E20/D20 -> 
E21: =SUMIF(TBL_monthly_purchases[[#Data],[CATEGORY]],'Chart Data'!S13,TBL_monthly_purchases[[#Data],[AMOUNT]]) -> 0 | F21: =TBL_budget_categories[[#This Row],[Budget]]-TBL_budget_categories[[#This Row],[Actual]] -> 0
E22: =SUMIF(TBL_monthly_purchases[[#Data],[CATEGORY]],'Chart Data'!S14,TBL_monthly_purchases[[#Data],[AMOUNT]]) -> 0 | F22: =TBL_budget_categories[[#This Row],[Budget]]-TBL_budget_categories[[#This Row],[Actual]] -> 0
E23: =SUMIF(TBL_monthly_purchases[[#Data],[CATEGORY]],'Chart Data'!S15,TBL_monthly_purchases[[#Data],[AMOUNT]]) -> 0 | F23: =TBL_budget_categories[[#This Row],[Budget]]-TBL_budget_categories[[#This Row],[Actual]] -> 0
E24: =SUMIF(TBL_monthly_purchases[[#Data],[CATEGORY]],'Chart Data'!S16,TBL_monthly_purchases[[#Data],[AMOUNT]]) -> 0 | F24: =TBL_budget_categories[[#This Row],[Budget]]-TBL_budget_categories[[#This Row],[Actual]] -> 0
E25: =SUMIF(TBL_monthly_purchases[[#Data],[CATEGORY]],'Chart Data'!S17,TBL_monthly_purchases[[#Data],[AMOUNT]]) -> 0 | F25: =TBL_budget_categories[[#This Row],[Budget]]-TBL_budget_categories[[#This Row],[Actual]] -> 0
E26: =SUMIF(TBL_monthly_purchases[[#Data],[CATEGORY]],'Chart Data'!S18,TBL_monthly_purchases[[#Data],[AMOUNT]]) -> 0 | F26: =TBL_budget_categories[[#This Row],[Budget]]-TBL_budget_categories[[#This Row],[Actual]] -> 0 | G26: =E26/D26 -> 
E27: =SUMIF(TBL_monthly_purchases[[#Data],[CATEGORY]],'Chart Data'!S19,TBL_monthly_purchases[[#Data],[AMOUNT]]) -> 0 | F27: =TBL_budget_categories[[#This Row],[Budget]]-TBL_budget_categories[[#This Row],[Actual]] -> 0
E28: =SUMIF(TBL_monthly_purchases[[#Data],[CATEGORY]],'Chart Data'!S20,TBL_monthly_purchases[[#Data],[AMOUNT]]) -> 0 | F28: =TBL_budget_categories[[#This Row],[Budget]]-TBL_budget_categories[[#This Row],[Actual]] -> 0
E29: =SUMIF(TBL_monthly_purchases[[#Data],[CATEGORY]],'Chart Data'!S21,TBL_monthly_purchases[[#Data],[AMOUNT]]) -> 0 | F29: =TBL_budget_categories[[#This Row],[Budget]]-TBL_budget_categories[[#This Row],[Actual]] -> 0
E30: =SUMIF(TBL_monthly_purchases[[#Data],[CATEGORY]],'Chart Data'!S22,TBL_monthly_purchases[[#Data],[AMOUNT]]) -> 0 | F30: =TBL_budget_categories[[#This Row],[Budget]]-TBL_budget_categories[[#This Row],[Actual]] -> 0
E31: =SUMIF(TBL_monthly_purchases[[#Data],[CATEGORY]],'Chart Data'!S23,TBL_monthly_purchases[[#Data],[AMOUNT]]) -> 0 | F31: =TBL_budget_categories[[#This Row],[Budget]]-TBL_budget_categories[[#This Row],[Actual]] -> 0
E32: =SUMIF(TBL_monthly_purchases[[#Data],[CATEGORY]],'Chart Data'!S24,TBL_monthly_purchases[[#Data],[AMOUNT]]) -> 0 | F32: =TBL_budget_categories[[#This Row],[Budget]]-TBL_budget_categories[[#This Row],[Actual]] -> 0
E33: =SUMIF(TBL_monthly_purchases[[#Data],[CATEGORY]],'Chart Data'!S25,TBL_monthly_purchases[[#Data],[AMOUNT]]) -> 0 | F33: =TBL_budget_categories[[#This Row],[Budget]]-TBL_budget_categories[[#This Row],[Actual]] -> 0
E34: =SUMIF(TBL_monthly_purchases[[#Data],[CATEGORY]],'Chart Data'!S26,TBL_monthly_purchases[[#Data],[AMOUNT]]) -> 0 | F34: =TBL_budget_categories[[#This Row],[Budget]]-TBL_budget_categories[[#This Row],[Actual]] -> 0
C35: Total | D35: =SUBTOTAL(109,TBL_budget_categories[Budget]) -> $600.00 | E35: =SUBTOTAL(109,TBL_budget_categories[Actual]) -> $180.00
